fUST/lending_fUST_20250403
["ID","MTS","AMOUNT","RATE_DAILY","PERIOD"]
[357050421,1743640243042,-185.207125,0.00020928,2]
[357050422,1743640243052,-185.207125,0.00020928,2]
[357050423,1743640243062,-500.0,0.00021134,2]
[357050424,1743640243072,-2000.0,0.00021196,4]
[357050425,1743640243082,-1250.54598327,0.00021245,3]
[357050426,1743640243092,-500.0,0.0002139,2]
[357050427,1743640243103,-542.0,0.00021396,2]
[357050428,1743640243113,-2261.0,0.00021396,2]
[357050429,1743640243123,-1643.0,0.00021396,2]
[357050430,1743640243133,-542.968,0.00021396,2]
[357050432,1743640243142,-500.0,0.00021408,2]
[357050434,1743640243152,-160.0,0.00021619,3]
[357050435,1743640243162,-159.009,0.00021644,2]
[357050436,1743640243172,-217.37642144,0.00021665,2]
[357050437,1743640243189,-500.0,0.00021682,2]
[357050438,1743640243208,-1419.596714,0.00021717,2]
[357050439,1743640243222,-1250.54598327,0.00021831,3]
[357050440,1743640243232,-10129.94071267,0.00021863,2]
[357050441,1743640243246,-151.0,0.00021863,2]
[357050442,1743640243256,-185.207125,0.00021863,2]
[357050443,1743640243267,-185.207125,0.00021863,2]
[357050444,1743640243276,-183.389932,0.00021863,2]
[357050445,1743640243286,-375.901445,0.00021863,2]
[357050446,1743640243296,-375.901445,0.00021863,2]
[357050447,1743640243306,-1297.2879281,0.00021918,7]
[357050448,1743640243315,-153.0,0.00021918,2]
[357050449,1743640243325,-153.0,0.00021918,2]
[357050450,1743640243334,-500.0,0.00021956,2]
[357050451,1743640243344,-151.0,0.00022,2]
[357050452,1743640243354,-151.0,0.00022192,2]
[357050453,1743640243364,-500.0,0.0002223,2]
[357050454,1743640243374,-1250.54598327,0.00022417,4]
[357050455,1743640243384,-600.0,0.00022462,2]
[357050456,1743640243394,-500.0,0.00022504,2]
[357050457,1743640243404,-160.0,0.00022539,4]
[357050458,1743640243414,-546.66168264,0.00022564,2]
[357050459,1743640243423,-240.1451005,0.000226,2]
[357050460,1743640243433,-46.47304457,0.000226,7]
[357050461,1743640243449,-104.52695543,0.000226,7]
[357050462,1743640243459,-185.207125,0.000226,7]
[357050463,1743640243469,-185.207129,0.000226,7]
[357050464,1743640243479,-800.0,0.00022653,2]
[357050465,1743640243489,-800.0,0.00022671,2]
[357050466,1743640243498,-358.64476359,0.00022696,2]
[357050467,1743640243510,-241.35523641,0.00022696,2]
[357050468,1743640243520,-118.52869937,0.00022706,2]
[357050484,1743640246711,-257.590314,0.00017564,2]
[357050485,1743640246721,-160.0,0.00020591,2]
[357050486,1743640246732,-681.47130063,0.00022706,2]
[357050487,1743640246742,-253.33831736,0.0002276,2]
[357050488,1743640246752,-500.0,0.00022778,2]
[357050489,1743640246762,-800.0,0.00022798,2]
[357050490,1743640246771,-375.901445,0.00022798,2]
[357050492,1743640246898,-375.901445,0.00022798,2]
[357050493,1743640246910,-151.0,0.000229,6]
[357050494,1743640246921,-151.0,0.000229,9]
[357050495,1743640246932,-600.0,0.0002293,2]
[357050496,1743640246942,-800.0,0.00022969,2]
[357050497,1743640246952,-419.02799708,0.00023,3]
[357050498,1743640246962,-1250.54598327,0.00023003,4]
[357050499,1743640246972,-151.0,0.00023014,2]
[357050500,1743640246982,-800.0,0.00023018,2]
[357050501,1743640246992,-800.0,0.00023045,2]
[357050502,1743640247002,-800.0,0.0002305,2]
[357050503,1743640247011,-500.0,0.00023052,2]
[357050504,1743640247020,-217.37642144,0.00023066,2]
[357050505,1743640247030,-4811.56938693,0.00023066,2]
[357050506,1743640247040,-5866.99,0.0002308,2]
[357050507,1743640247049,-868.2159898,0.0002308,2]
[357050517,1743640844318,153.59,0.000249,31]
[357050518,1743640844394,153.59,0.000249,31]
[357050519,1743640844439,153.59,0.000249,31]
[357050520,1743640844502,153.59,0.000249,31]
[357050521,1743640844560,153.59,0.000249,31]
[357050522,1743640844631,153.59,0.000249,31]
[357050523,1743640844700,153.59,0.000249,31]
[357050559,1743641432903,-500.0,0.00017561,2]
[357050560,1743641432914,-500.0,0.00017835,2]
[357050561,1743641432925,-500.0,0.00018109,2]
[357050562,1743641432935,-160.0,0.00018206,2]
[357050563,1743641432946,-419.02799708,0.00018206,2]
[357050564,1743641432957,-300.0,0.00018231,2]
[357050565,1743641432969,-12119.12846144,0.00018232,2]
[357050566,1743641432980,-160.0,0.00018232,2]
[357050567,1743641432991,-160.0,0.00018232,2]
[357050568,1743641433004,-500.0,0.00018383,2]
[357050569,1743641433015,-500.0,0.00018656,2]
[357050572,1743641433027,-479.88662287,0.0001893,2]
[357050573,1743641433039,-955.5631533,0.00020386,2]
[357050574,1743641433052,-154.541343,0.00020944,3]
[357050575,1743641433065,-200.0,0.00020986,2]
[357050576,1743641433078,-500.0,0.00020999,2]
[357050577,1743641433091,-500.0,0.00020999,2]
[357050578,1743641433105,-500.0,0.00020999,2]
[357050579,1743641433116,-500.0,0.00020999,2]
[357050580,1743641433127,-500.0,0.00020999,2]
[357050581,1743641433137,-2384.83529537,0.00021,2]
[357050582,1743641433148,-272.0,0.00021609,2]
[357050583,1743641433159,-154.541343,0.00021869,2]
[357050584,1743641433170,-153.0,0.00021918,2]
[357050585,1743641433181,-153.0,0.00021918,2]
[357050586,1743641433193,-153.0,0.00021918,2]
[357050587,1743641433206,-151.0,0.00022,2]
[357050588,1743641433218,-765.25568133,0.00022462,2]
[357050589,1743641433230,-224.1424992,0.000226,2]
[357050590,1743641433242,-500.0,0.000228,2]
[357050591,1743641433254,-1049.34680451,0.00022869,2]
[357050592,1743641433264,-152.54882241,0.00022913,2]
[357050593,1743641433274,-152.54882239,0.00022928,2]
[357050594,1743641433285,-152.54882239,0.00022943,2]
[357050595,1743641433296,-152.54882239,0.00022957,2]
[357050596,1743641433307,-500.0,0.00022967,2]
[357050597,1743641433319,-561.43127155,0.00022967,2]
[357050598,1743641433329,-500.0,0.00022967,2]
[357050599,1743641433341,-500.0,0.00022967,2]
[357050600,1743641433352,-500.0,0.00022967,2]
[357050601,1743641433363,-226.68524018,0.00022967,2]
[357050602,1743641433373,-500.0,0.00022967,2]
[357050603,1743641433384,-500.0,0.00022967,2]
[357050604,1743641433394,-500.0,0.00022967,2]
[357050605,1743641433405,-500.0,0.00022967,2]
[357050606,1743641433418,-500.0,0.00022967,2]
[357050607,1743641433428,-500.0,0.00022967,2]
[357050608,1743641433439,-500.0,0.00022967,2]
[357050609,1743641433449,-500.0,0.00022967,2]
[357050610,1743641433460,-500.0,0.00022967,2]
[357050611,1743641433474,-500.0,0.00022967,2]
[357050612,1743641433485,-500.0,0.00022967,2]
[357050613,1743641433496,-500.0,0.00022967,2]
[357050614,1743641433507,-500.0,0.00022967,2]
[357050615,1743641433518,-500.0,0.00022967,2]
[357050616,1743641433530,-500.0,0.00022967,2]
[357050617,1743641433547,-500.0,0.00022967,2]
[357050618,1743641433558,-500.0,0.00022967,2]
[357050619,1743641433568,-500.0,0.00022967,2]
[357050620,1743641433579,-500.0,0.00022967,2]
[357050621,1743641433590,-500.0,0.00022967,2]
[357050622,1743641433600,-500.0,0.00022967,2]
[357050623,1743641433611,-500.0,0.00022967,2]
[357050624,1743641433622,-6383.93560364,0.00022969,2]
[357050625,1743641433633,-152.54882239,0.00022972,2]
[357050626,1743641433643,-151.0,0.00023014,2]
[357050627,1743641433654,-500.0,0.00023033,2]
[357050628,1743641433665,-500.0,0.00023052,2]
[357050629,1743641433675,-5622.5089742,0.00023066,3]
[357050630,1743641433686,-419.02799708,0.00023066,3]
[357050631,1743641433697,-160.0,0.00023066,3]
[357050632,1743641433707,-267.83011794,0.00023066,3]
[357050633,1743641433717,-15233.45180148,0.00023066,3]
[357050634,1743641433728,-59616.1525744,0.00023066,2]
[357050651,1743641438624,-151.0,0.00022,2]
[357050653,1743641438634,-500.0,0.00022967,2]
[357050655,1743641438643,-500.0,0.00022967,2]
[357050657,1743641438653,-500.0,0.00022967,2]
[357050659,1743641438662,-500.0,0.00022967,2]
[357050661,1743641438671,-500.0,0.00022967,2]
[357050663,1743641438684,-500.0,0.00022967,2]
[357050665,1743641438693,-500.0,0.00022967,2]
[357050667,1743641438703,-76.18500009,0.00022967,2]
[357050874,1743641440863,-423.81499991,0.00022967,2]
[357050876,1743641440873,-500.0,0.00022967,2]
[357050878,1743641440883,-428.83054905,0.00022967,2]
[357050880,1743641440895,-71.16945095,0.00022967,2]
[357050882,1743641440904,-500.0,0.00022967,2]
[357050884,1743641440914,-500.0,0.00022967,2]
[357050886,1743641440924,-500.0,0.00022967,2]
[357050888,1743641440934,-500.0,0.00022967,2]
[357050890,1743641440943,-500.0,0.00022967,2]
[357050892,1743641440953,-500.0,0.00022967,2]
[357050894,1743641440962,-590.4513934,0.00022967,2]
[357050896,1743641440972,-500.0,0.00022967,2]
[357050898,1743641440981,-500.0,0.00022967,2]
[357050900,1743641440990,-500.0,0.00022967,2]
[357050902,1743641441000,-500.0,0.00022967,2]
[357050904,1743641441009,-500.0,0.00022967,2]
[357050906,1743641441019,-500.0,0.00022967,2]
[357050908,1743641441028,-173837.93915565,0.00023066,2]
[357050910,1743641441041,-10020.13929603,0.00023066,2]
[357050913,1743641441053,-3765.82322627,0.00023066,2]
[357050915,1743641441064,-929.06,0.00023066,2]
[357051128,1743641443611,-34627.42751127,0.00023066,2]
[357051135,1743641443665,-503.54858263,0.00023066,2]
[357051257,1743641448595,153.61,0.000249,31]
[357051258,1743641448643,153.61,0.000249,31]
[357051259,1743641448718,153.61,0.000249,31]
[357051260,1743641448785,153.61,0.000249,31]
[357051261,1743641448837,153.61,0.000249,31]
[357051262,1743641448880,153.61,0.000249,31]
[357051263,1743641448949,153.61,0.000249,31]
[357051267,1743642052127,153.63,0.000249,31]
[357051268,1743642052188,153.63,0.000249,31]
[357051269,1743642052241,153.63,0.000249,31]
[357051270,1743642052304,153.63,0.000249,31]
[357051271,1743642052370,153.63,0.000249,31]
[357051272,1743642052420,153.63,0.000249,31]
[357051273,1743642052488,153.63,0.000249,31]
[357051317,1743642631818,-193.390421,0.00021674,2]
[357051319,1743642631828,-300.0,0.00021917,2]
[357051320,1743642631837,-153.0,0.00021918,2]
[357051321,1743642631848,-153.0,0.00021918,2]
[357051322,1743642631857,-153.0,0.00021918,2]
[357051323,1743642631866,-153.0,0.00021918,2]
[357051324,1743642631875,-153.0,0.00021918,2]
[357051325,1743642631885,-153.0,0.00021918,2]
[357051326,1743642631894,-153.0,0.00021918,2]
[357051327,1743642631907,-153.0,0.00021918,2]
[357051328,1743642631917,-153.0,0.00021918,2]
[357051329,1743642631926,-153.0,0.00021918,2]
[357051330,1743642631937,-153.0,0.00021918,2]
[357051331,1743642631947,-153.0,0.00021918,2]
[357051332,1743642631956,-170.0,0.00022,2]
[357051333,1743642631966,-1500.0,0.00022072,2]
[357051334,1743642631976,-500.0,0.000222,2]
[357051335,1743642631986,-212.1405483,0.00022387,2]
[357051336,1743642631995,-724.66021395,0.00022619,2]
[357051337,1743642632004,-160.0,0.00022822,2]
[357051338,1743642632014,-419.02799708,0.00022822,2]
[357051339,1743642632023,-160.0,0.00022853,3]
[357051340,1743642632033,-4255.9570691,0.00022873,2]
[357051341,1743642632043,-400.75176188,0.00022873,2]
[357051342,1743642632052,-1268.81858802,0.000229,4]
[357051343,1743642632062,-200.0,0.00022952,2]
[357051344,1743642632072,-169.21,0.00022955,2]
[357051345,1743642632081,-500.0,0.00022963,2]
[357051346,1743642632094,-500.0,0.00022963,2]
[357051347,1743642632104,-500.0,0.00022963,2]
[357051348,1743642632114,-500.0,0.00022963,2]
[357051349,1743642632124,-150.04140902,0.00022963,2]
[357051350,1743642632133,-516.85198957,0.00022965,2]
[357051351,1743642632144,-500.0,0.00022965,2]
[357051352,1743642632153,-500.0,0.00022965,2]
[357051353,1743642632163,-500.0,0.00022965,2]
[357051354,1743642632172,-500.0,0.00022965,2]
[357051355,1743642632181,-500.0,0.00022965,2]
[357051356,1743642632191,-500.0,0.00022965,2]
[357051357,1743642632200,-500.0,0.00022965,2]
[357051358,1743642632210,-500.0,0.00022965,2]
[357051359,1743642632219,-500.0,0.00022965,2]
[357051360,1743642632230,-500.0,0.00022965,2]
[357051361,1743642632240,-500.0,0.00022965,2]
[357051362,1743642632250,-500.0,0.00022965,2]
[357051363,1743642632261,-500.0,0.00022965,2]
[357051364,1743642632270,-500.0,0.00022965,2]
[357051365,1743642632280,-500.0,0.00022965,2]
[357051366,1743642632290,-500.0,0.00022965,2]
[357051367,1743642632300,-500.0,0.00022965,2]
[357051368,1743642632309,-500.0,0.00022965,2]
[357051369,1743642632318,-500.0,0.00022965,2]
[357051370,1743642632328,-500.0,0.00022965,2]
[357051371,1743642632337,-500.0,0.00022965,2]
[357051372,1743642632350,-500.0,0.00022965,2]
[357051373,1743642632360,-500.0,0.00022965,2]
[357051374,1743642632369,-500.0,0.00022965,2]
[357051375,1743642632378,-500.0,0.00022965,2]
[357051376,1743642632388,-500.0,0.00022965,2]
[357051377,1743642632397,-500.0,0.00022965,2]
[357051378,1743642632406,-500.0,0.00022965,2]
[357051379,1743642632415,-500.0,0.00022965,2]
[357051380,1743642632425,-363.06239781,0.00022965,2]
[357051381,1743642632434,-500.0,0.00022965,2]
[357051382,1743642632443,-500.0,0.00022965,2]
[357051383,1743642632453,-500.0,0.00022965,2]
[357051384,1743642632462,-500.0,0.00022965,2]
[357051385,1743642632471,-500.0,0.00022965,2]
[357051386,1743642632480,-500.0,0.00022965,2]
[357051387,1743642632491,-500.0,0.00022965,2]
[357051388,1743642632501,-500.0,0.00022965,2]
[357051389,1743642632510,-650.0,0.00022965,2]
[357051390,1743642632519,-500.10106877,0.00022965,2]
[357051391,1743642632528,-437.09115737,0.00022965,2]
[357051392,1743642632538,-267.83011794,0.00022966,3]
[357051393,1743642632548,-36953.48694283,0.00022966,2]
[357051394,1743642632560,-32451.49750825,0.00022966,2]
[357051395,1743642632572,-773.74350412,0.00022966,2]
[357051396,1743642632583,-8336.53456041,0.00022966,2]
[357051397,1743642632595,-97906.13066903,0.00022966,2]
[357051398,1743642637826,-2462.65414501,0.00022966,3]
[357051399,1743642637884,-5154.07175572,0.00022966,3]
[357051400,1743642637894,-5307.70757329,0.00022966,2]
[357051401,1743642637908,-3855.48787274,0.00022966,2]
[357051406,1743642639975,-401.0,0.00021609,2]
[357051407,1743642639990,-171.0,0.00022,2]
[357051408,1743642640002,-133440.14326872,0.00022966,2]
[357051409,1743642640034,-1512.81684643,0.00022966,2]
[357051445,1743642642752,-349.99771275,0.00022966,2]
[357051459,1743642645789,-49112.45354143,0.00022966,2]
[357051460,1743642645799,-329.28500188,0.00022973,2]
[357051461,1743642645809,-500.0,0.00022973,2]
[357051462,1743642645820,-500.0,0.00022973,2]
[357051463,1743642645832,-500.0,0.00022973,2]
[357051464,1743642645842,-500.0,0.00022973,2]
[357051465,1743642645851,-500.0,0.00022973,2]
[357051466,1743642645861,-171.0,0.00023014,2]
[357051467,1743642645871,-500.0,0.00023033,2]
[357051468,1743642645880,-500.0,0.00023037,2]
[357051469,1743642645889,-500.0,0.0002304,2]
[357051470,1743642645899,-500.0,0.00023062,2]
[357051471,1743642645912,-151.0,0.00023079,2]
[357051472,1743642645922,-2657.44190097,0.0002308,2]
[357051473,1743642645931,-500.0,0.00023081,2]
[357051475,1743642645941,-500.0,0.00023121,2]
[357051476,1743642645950,-500.0,0.00023138,2]
[357051477,1743642645960,-4028.57227962,0.00023139,2]
[357051478,1743642645969,-1003.156603,0.00023165,2]
[357051479,1743642645978,-36176.3684736,0.00023166,2]
[357051480,1743642645989,-177753.72174149,0.00023166,2]
[357051481,1743642645998,-1500.0,0.00023168,2]
[357051482,1743642646007,-15.75318768,0.00023173,2]
[357051483,1743642646021,-484.24681232,0.00023173,2]
[357051484,1743642646030,-500.0,0.00023173,2]
[357051485,1743642646039,-500.0,0.00023194,2]
[357051486,1743642646048,-500.0,0.00023197,2]
[357051487,1743642646058,-500.0,0.00023201,2]
[357051488,1743642646067,-500.0,0.00023213,2]
[357051489,1743642646077,-500.0,0.00023237,2]
[357051490,1743642646086,-500.0,0.00023237,2]
[357051491,1743642646095,-500.0,0.00023279,2]
[357051492,1743642646106,-151.0,0.00023286,2]
[357051493,1743642646116,-151.0,0.00023286,2]
[357051494,1743642646125,-6.44668268,0.00023286,2]
[357051495,1743642646137,-276.01553022,0.00023286,2]
[357051496,1743642646148,-15.5377871,0.00023286,2]
[357051497,1743642646157,-422.1072129,0.00023298,2]
[357051498,1743642646169,-2824.80798005,0.00023298,2]
[357051499,1743642646181,-2947.10669476,0.00023298,2]
[357051500,1743642646191,-160.0,0.00023299,4]
[357051501,1743642646202,-162.23518795,0.00023299,5]
[357051502,1743642646211,-500.0,0.00023333,2]
[357051503,1743642646223,-1268.81858774,0.00023348,4]
[357051504,1743642646232,-500.0,0.00023373,2]
[357051505,1743642646242,-500.0,0.00023373,2]
[357051506,1743642646252,-500.0,0.00023373,2]
[357051507,1743642646261,-500.0,0.00023373,2]
[357051508,1743642646271,-248.43221737,0.00023373,2]
[357051509,1743642646280,-500.0,0.00023373,2]
[357051510,1743642646290,-356.80731218,0.00023373,2]
[357051511,1743642646302,-143.19268782,0.00023373,2]
[357051512,1743642646312,-283.38143026,0.00023387,2]
[357051513,1743642655131,153.68,0.000249,31]
[357051514,1743642655175,153.68,0.000249,31]
[357051515,1743642655304,153.68,0.000249,31]
[357051516,1743642655344,153.68,0.000249,31]
[357051517,1743642655396,153.68,0.000249,31]
[357051518,1743642655444,153.68,0.000249,31]
[357051519,1743642655486,153.68,0.000249,31]
[357051520,1743642694144,155.417815,0.00025,30]
[357051522,1743643175403,161.634528,0.00025,30]
[357051523,1743643257406,153.75,0.000249,31]
[357051524,1743643257466,153.75,0.000249,31]
[357051525,1743643257527,153.75,0.000249,31]
[357051526,1743643257583,153.75,0.000249,31]
[357051527,1743643257644,153.75,0.000249,31]
[357051528,1743643257705,153.75,0.000249,31]
[357051529,1743643257768,153.75,0.000249,31]
[357051532,1743643426653,2540.399931,0.00025,31]
[357051556,1743643777659,155.169147,0.00025,30]
[357051594,1743643837932,-221.7345172,0.00021252,2]
[357051595,1743643837943,-221.73451721,0.00021252,2]
[357051596,1743643837952,-401.0,0.00021648,2]
[357051597,1743643837962,-155.169147,0.00021739,6]
[357051598,1743643837971,-836.00498798,0.00021848,2]
[357051599,1743643837981,-153.0,0.00021918,2]
[357051600,1743643837990,-56.35439045,0.00021918,2]
[357051601,1743643838002,-96.64560955,0.00021918,2]
[357051602,1743643838011,-153.0,0.00021918,2]
[357051603,1743643838021,-153.0,0.00021918,2]
[357051604,1743643838030,-153.0,0.00021918,2]
[357051605,1743643838039,-146.64214952,0.00021918,2]
[357051606,1743643838051,-6.35785048,0.00021918,2]
[357051607,1743643838061,-290.29735386,0.000221,2]
[357051608,1743643838071,-155.169147,0.00022126,6]
[357051609,1743643838080,-155.169147,0.00022176,2]
[357051610,1743643838090,-519.6898513,0.00022482,2]
[357051611,1743643838099,-155.169147,0.00022513,6]
[357051612,1743643838108,-159.1054112,0.00022685,2]
[357051613,1743643838117,-300.0,0.00022798,2]
[357051614,1743643838127,-2057.11988116,0.00022799,2]
[357051621,1743643840348,-160.3891321,0.00022685,2]
[357051622,1743643840360,-1177.16067928,0.00022799,2]
[357051623,1743643840443,-420.87043536,0.00022799,2]
[357051624,1743643840461,-1344.8490042,0.00022799,2]
[357051625,1743643840475,-200.0,0.00022852,2]
[357051626,1743643840485,-311.99292036,0.00022864,2]
[357051627,1743643840497,-190.61984864,0.00022864,2]
[357051628,1743643840507,-500.0,0.00022864,2]
[357051629,1743643840516,-190.6080337,0.00022864,2]
[357051630,1743643840525,-647.46417589,0.00022864,2]
[357051631,1743643840535,-352.29342464,0.00022864,2]
[357051632,1743643840544,-305.96381016,0.00022865,2]
[357051633,1743643840553,-500.0,0.00022865,2]
[357051634,1743643840563,-500.0,0.00022865,2]
[357051635,1743643840572,-201.22325316,0.00022865,2]
[357051636,1743643840581,-500.0,0.00022865,2]
[357051637,1743643840591,-500.0,0.00022865,2]
[357051638,1743643840601,-500.0,0.00022865,2]
[357051639,1743643840611,-500.0,0.00022865,2]
[357051640,1743643840621,-500.0,0.00022865,2]
[357051641,1743643840631,-215.76997754,0.00022865,2]
[357051642,1743643840642,-500.0,0.00022865,2]
[357051643,1743643840652,-500.0,0.00022865,2]
[357051644,1743643840662,-500.0,0.00022865,2]
[357051645,1743643840672,-500.0,0.00022865,2]
[357051646,1743643840681,-500.0,0.00022865,2]
[357051647,1743643840691,-500.0,0.00022865,2]
[357051648,1743643840701,-500.0,0.00022865,2]
[357051649,1743643840710,-500.0,0.00022865,2]
[357051650,1743643840719,-500.0,0.00022865,2]
[357051651,1743643840730,-500.0,0.00022865,2]
[357051652,1743643840740,-500.0,0.00022865,2]
[357051653,1743643840750,-470.65455568,0.00022865,2]
[357051654,1743643840760,-411.61215875,0.00022865,2]
[357051655,1743643840770,-500.0,0.00022865,2]
[357051656,1743643840779,-500.0,0.00022865,2]
[357051657,1743643840789,-500.0,0.00022865,2]
[357051658,1743643840799,-500.0,0.00022865,2]
[357051659,1743643840808,-500.0,0.00022865,2]
[357051660,1743643840819,-500.0,0.00022865,2]
[357051661,1743643840830,-500.0,0.00022865,2]
[357051662,1743643840839,-500.0,0.00022865,2]
[357051663,1743643840849,-500.0,0.00022865,2]
[357051664,1743643840858,-500.0,0.00022865,2]
[357051665,1743643840868,-180.29076184,0.00022865,2]
[357051672,1743643843099,-319.70923816,0.00022865,2]
[357051673,1743643843109,-302.21076184,0.00022865,2]
[357051674,1743643843193,-197.78923816,0.00022865,2]
[357051675,1743643843204,-500.0,0.00022865,2]
[357051676,1743643843213,-500.0,0.00022865,2]
[357051677,1743643843224,-500.0,0.00022865,2]
[357051678,1743643843233,-500.0,0.00022865,2]
[357051679,1743643843246,-500.0,0.00022865,2]
[357051680,1743643843255,-500.0,0.00022865,2]
[357051681,1743643843264,-500.0,0.00022865,2]
[357051682,1743643843275,-4.44835332,0.00022865,2]
[357051698,1743643846270,-495.55164668,0.00022865,2]
[357051699,1743643846284,-500.0,0.00022865,2]
[357051700,1743643846293,-500.0,0.00022865,2]
[357051701,1743643846303,-500.0,0.00022865,2]
[357051702,1743643846314,-500.0,0.00022865,2]
[357051703,1743643846324,-500.0,0.00022865,2]
[357051704,1743643846335,-500.0,0.00022865,2]
[357051705,1743643846348,-500.0,0.00022865,2]
[357051706,1743643846357,-500.0,0.00022865,2]
[357051707,1743643846366,-292.54320348,0.00022865,2]
[357051708,1743643846376,-34415.85727408,0.00022866,2]
[357051709,1743643859315,194.95,0.000249,31]
[357051711,1743643868366,151.667063,0.00025,30]
[357051713,1743644073848,1003.271152,0.00025,30]
[357051717,1743644166574,650.0,0.00025,30]
[357051721,1743644377386,1287.929854,0.00025,30]
[357051723,1743644460261,153.77,0.000249,31]
[357051724,1743644460310,153.77,0.000249,31]
[357051730,1743644697254,1000.0,0.00025,30]
[357051737,1743644948048,71959.96188575,0.00025,30]
[357051738,1743644954348,199.99,0.00015,2]
[357051740,1743644976065,1236.41266,0.00025,30]
[357051772,1743645032231,-1236.41266,0.0001971,7]
[357051774,1743645032242,-150.05312663,0.0002,5]
[357051776,1743645032253,-180.59093302,0.00020496,2]
[357051778,1743645032263,-1236.41266,0.00020532,7]
[357051780,1743645032274,-1236.41266,0.00021355,7]
[357051782,1743645032285,-1236.41266,0.00021393,2]
[357051784,1743645032297,-150.538,0.00021634,2]
[357051786,1743645032308,-150.08,0.00021634,2]
[357051788,1743645032318,-150.085,0.00021634,2]
[357051790,1743645032330,-836.00498798,0.00021826,2]
[357051792,1743645032342,-1576.59503286,0.000219,3]
[357051795,1743645032354,-153.0,0.00021918,2]
[357051797,1743645032366,-153.0,0.00021918,2]
[357051798,1743645032378,-153.0,0.00021918,2]
[357051800,1743645032388,-153.0,0.00021918,2]
[357051802,1743645032400,-1236.41266,0.00022175,2]
[357051804,1743645032411,-1236.41266,0.00022178,7]
[357051806,1743645032423,-1576.59503283,0.00022383,4]
[357051808,1743645032435,-161.0309927,0.00022685,2]
[357051811,1743645032447,-2741.82205267,0.00022766,2]
[357051813,1743645032459,-1191.80155117,0.00022834,2]
[357051815,1743645032470,-1576.59503283,0.00022866,4]
[357051817,1743645032482,-340.92377567,0.00022898,2]
[357051819,1743645032494,-172.92116911,0.00022898,2]
[357051822,1743645032504,-494.31588274,0.00022898,2]
[357051824,1743645032515,-151.95066538,0.00022899,2]
[357051826,1743645032525,-500.0,0.00022899,2]
[357051828,1743645032535,-500.0,0.00022899,2]
[357051830,1743645032546,-343.62693514,0.00022899,2]
[357051831,1743645032556,-152.07121514,0.00022899,2]
[357051832,1743645032567,-220.11211189,0.00022934,2]
[357051833,1743645032579,-225.95126713,0.00022934,2]
[357051834,1743645032592,-305.1152919,0.00022934,2]
[357051835,1743645032604,-328.47967709,0.00022934,2]
[357051836,1743645032616,-602.24181083,0.00022934,2]
[357051837,1743645032628,-238.90183718,0.00022934,2]
[357051838,1743645032638,-7229.47,0.00022934,2]
[357051839,1743645032649,-1236.41266,0.00022935,15]
[357051840,1743645032661,-1236.41266,0.00022956,2]
[357051841,1743645032674,-1236.41266,0.00022977,15]
[357051842,1743645032686,-160.0,0.0002298,2]
[357051843,1743645032697,-210.00410394,0.0002299,2]
[357051844,1743645032708,-342258.44926389,0.00023,2]
[357051845,1743645032723,-1718.26010324,0.00023,2]
[357051875,1743645038083,-160.0,0.00021827,2]